bitfinex-derivatives/quotes_BNBF0:USTF0_20250507
["timestamp","ask_amount","ask_price","bid_price","bid_amount"]
[1746651730961,2.29133302,598.86,598.27,2.78329722]
[1746651731162,1.01903053,598.85,598.27,2.78329722]
[1746651731365,1.01903053,598.84,598.27,2.78329722]
[1746651731765,1.01903053,598.83,598.27,2.78329722]
[1746651732060,1.01903053,598.82,598.27,2.78329722]
[1746651732267,0.29068432,599.1,598.27,2.78329722]
[1746651732460,2.29131835,599.09,598.27,2.78329722]
[1746651732662,1.27230644,599.08,598.27,2.78329722]
[1746651732863,1.27230644,599.07,598.27,2.78329722]
[1746651733160,2.29131835,599.06,598.27,2.78329722]
[1746651733364,2.29131835,599.05,598.27,2.78329722]
[1746651733663,2.29131835,599.04,598.27,2.78329722]
[1746651733862,1.27236184,599.03,598.27,2.78329722]
[1746651734063,2.29137375,599.02,598.27,2.78329722]
[1746651734365,2.29137375,599.01,598.27,2.78329722]
[1746651734559,1.27236184,599.0,598.27,2.78329722]
[1746651734762,1.27244657,598.99,598.27,2.78329722]
[1746651734960,2.29145848,598.98,598.27,2.78329722]
[1746651735162,1.27244657,598.97,598.27,2.78329722]
[1746651735362,2.29145848,598.96,598.27,2.78329722]
[1746651735561,1.27244657,598.95,598.27,2.78329722]
[1746651735766,1.27244657,598.94,598.27,2.78329722]
[1746651736066,2.29145848,598.93,598.27,2.78329722]
[1746651736266,2.29145848,598.92,598.27,2.78329722]
[1746651736567,2.29145848,598.91,598.27,2.78329722]
[1746651736763,2.29145848,598.9,598.27,2.78329722]
[1746651736962,2.29145848,598.89,598.27,2.78329722]
[1746651737165,2.29145848,598.88,598.27,2.78329722]
[1746651737367,1.27244657,598.87,598.27,2.78329722]
[1746651737567,2.2918399,598.86,598.27,2.78329722]
[1746651737769,1.01924215,598.85,598.27,2.78329722]
[1746651738067,1.01924215,598.84,598.27,2.78329722]
[1746651738268,1.01924215,598.83,598.27,2.78329722]
[1746651739070,0.29069646,599.1,598.27,2.78329722]
[1746651739873,1.27272731,599.09,598.27,2.78329722]
[1746651740171,2.29116954,599.08,598.27,2.78329722]
[1746651740373,1.27272731,599.07,598.27,2.78329722]
[1746651740569,2.29116954,599.06,598.27,2.78329722]
[1746651740773,1.27272731,599.05,598.27,2.78329722]
[1746651740969,1.27272731,599.04,598.27,2.78329722]
[1746651741174,2.29116954,599.03,598.27,2.78329722]
[1746651741473,1.27272731,599.02,598.27,3.74329722]
[1746651741670,2.29116954,599.01,598.27,3.74329722]
[1746651741874,1.27272731,599.0,598.27,3.74329722]
[1746651742174,2.29116954,598.99,598.27,3.74329722]
[1746651742475,2.29116954,598.98,598.27,3.74329722]
[1746651742671,2.29116954,598.97,598.27,3.74329722]
[1746651742871,1.27272731,598.96,598.27,3.74329722]
[1746651743069,1.27272731,598.95,598.27,3.74329722]
[1746651743274,1.27272731,598.94,598.27,3.74329722]
[1746651743474,1.01844223,598.97,598.27,3.74329722]
[1746651743475,2.29116954,598.93,598.27,3.74329722]
[1746651743677,1.27272731,598.92,598.27,3.74329722]
[1746651743969,2.29116954,598.91,598.27,3.74329722]
[1746651744176,2.29116954,598.9,598.27,3.74329722]
[1746651744475,1.27272731,598.89,598.27,3.74329722]
[1746651744671,1.27272731,598.88,598.27,3.74329722]
[1746651744873,2.29116954,598.87,598.27,3.74329722]
[1746651745173,1.27272731,598.86,598.27,3.74329722]
[1746651745370,1.27272731,598.85,598.27,3.74329722]
[1746651745674,1.27272731,598.84,598.27,3.74329722]
[1746651745873,2.29116954,598.83,598.27,3.74329722]
[1746651746073,1.27272731,598.82,598.27,3.74329722]
[1746651746275,1.01844223,598.83,598.27,3.74329722]
[1746651746471,1.27213667,598.82,598.27,3.74329722]
[1746651746774,1.01844223,598.81,598.27,3.74329722]
[1746651747070,1.01844223,598.81,598.27,2.92029722]
[1746651747270,1.01844223,598.8,598.27,2.92029722]
[1746651747771,1.01844223,598.79,598.27,2.92029722]
[1746651748069,1.01844223,598.78,598.27,2.92029722]
[1746651748671,0.29069889,599.1,598.27,2.92029722]
[1746651748870,2.2931869,599.09,598.27,2.92029722]
[1746651749070,2.2931869,599.08,598.27,2.92029722]
[1746651749369,1.27335706,599.07,598.27,2.92029722]
[1746651749573,2.2931869,599.06,598.27,2.92029722]
[1746651749775,1.27335706,599.05,598.27,2.92029722]
[1746651749974,1.27335706,599.04,598.27,2.92029722]
[1746651750168,1.01982984,599.03,598.27,2.92029722]
[1746651750370,1.27337427,599.02,598.27,2.92029722]
[1746651750569,2.29320411,599.01,598.27,3.80529722]
[1746651750772,1.27337427,599.0,598.27,3.80529722]
[1746651750970,1.27337427,598.99,598.27,3.80529722]
[1746651751174,1.27337427,598.98,598.27,3.80529722]
[1746651751472,1.27337427,598.97,598.27,3.80529722]
[1746651751671,1.27337427,598.96,598.27,3.80529722]
[1746651751870,1.27337427,598.95,598.27,3.80529722]
[1746651752071,1.27337427,598.94,598.27,3.80529722]
[1746651752270,1.27337427,598.93,598.27,3.80529722]
[1746651752472,1.27337427,598.92,598.27,3.80529722]
[1746651752673,2.29320411,598.91,598.27,3.80529722]
[1746651752870,1.27337427,598.9,598.27,3.80529722]
[1746651753071,2.29320411,598.89,598.27,3.80529722]
[1746651753271,1.27337427,598.88,598.27,3.80529722]
[1746651753469,2.29320411,598.87,598.27,3.80529722]
[1746651753675,1.27337427,598.86,598.27,3.80529722]
[1746651753974,2.29320411,598.85,598.27,3.80529722]
[1746651754275,1.27337427,598.84,598.27,3.80529722]
[1746651754471,2.29320411,598.83,598.27,3.80529722]
[1746651754670,1.01982984,598.83,598.27,3.80529722]
[1746651754868,1.01982984,598.82,598.27,3.80529722]
[1746651755569,1.01982984,598.81,598.27,3.80529722]
[1746651755870,1.01982984,598.81,598.27,2.94029722]
[1746651756075,1.01982984,598.8,598.27,2.94029722]
[1746651757878,1.01982984,598.79,598.27,2.94029722]
[1746651758679,1.01982984,598.78,598.27,2.94029722]
[1746651759379,0.33352232,599.66,598.27,2.94029722]
[1746651759679,0.29070253,599.1,598.27,2.94029722]
[1746651759872,1.27286612,599.09,598.27,3.91529722]
[1746651760076,1.27286612,599.08,598.27,3.91529722]
[1746651760276,1.27286612,599.07,598.27,3.91529722]
[1746651760472,1.01979199,599.09,598.27,3.91529722]
[1746651760473,1.27286612,599.06,598.27,3.91529722]
[1746651760676,2.29265811,599.05,598.27,3.91529722]
[1746651760874,1.27286612,599.04,598.27,3.91529722]
[1746651761077,2.29265811,599.03,598.27,3.91529722]
[1746651761280,1.27282041,599.02,598.27,3.91529722]
[1746651761480,2.2926124,599.01,598.27,3.91529722]
[1746651761681,2.2926124,599.0,598.27,3.91529722]
[1746651761874,1.27282041,598.99,598.27,3.91529722]
[1746651762079,1.27282041,598.98,598.27,3.91529722]
[1746651762383,2.2926124,598.97,598.27,3.91529722]
[1746651762681,1.27282041,598.96,598.27,3.91529722]
[1746651762980,2.2926124,598.95,598.27,3.91529722]
[1746651763180,1.27282041,598.94,598.27,3.91529722]
[1746651763380,2.2926124,598.93,598.27,3.91529722]
[1746651763677,1.27282041,598.92,598.27,3.91529722]
[1746651763882,1.27282041,598.91,598.27,3.91529722]
[1746651764075,2.2926124,598.9,598.27,3.91529722]
[1746651764279,1.27282041,598.89,598.27,3.91529722]
[1746651764577,1.27282041,598.88,598.27,3.91529722]
[1746651764776,1.27282041,598.87,598.27,3.91529722]
[1746651764978,1.27282041,598.86,598.27,3.91529722]
[1746651765179,1.27282041,598.85,598.27,3.91529722]
[1746651765377,1.27282041,598.84,598.27,3.91529722]
[1746651765678,1.27282041,598.83,598.27,3.91529722]
[1746651765882,2.2926124,598.82,598.27,3.91529722]
[1746651766082,1.27282041,598.81,598.27,3.91529722]
[1746651766278,1.27282041,598.8,598.27,2.95529722]
[1746651766484,1.27282041,598.79,598.27,2.95529722]
[1746651766682,2.2926124,598.78,598.27,2.95529722]
[1746651766982,1.27282041,598.77,598.27,2.95529722]
[1746651767182,1.27282041,598.76,598.27,2.95529722]
[1746651767379,1.27282041,598.75,598.27,2.95529722]
[1746651767582,1.01979199,598.77,598.27,2.95529722]
[1746651767781,2.29211942,598.76,598.27,2.95529722]
[1746651767985,1.27232743,598.75,598.27,2.95529722]
[1746651768185,1.01979199,598.76,598.27,2.95529722]
[1746651768487,2.29478191,598.75,598.27,2.19429722]
[1746651768684,1.27498992,598.74,598.27,2.19429722]
[1746651768887,1.01979199,598.75,598.27,2.19429722]
[1746651769088,2.29478241,598.74,598.27,2.19429722]
[1746651769389,1.01979199,598.73,598.27,2.19429722]
[1746651769587,1.01979199,598.72,598.27,2.19429722]
[1746651770084,1.01979199,598.71,598.27,2.19429722]
[1746651770386,1.01979199,598.7,598.27,2.19429722]
[1746651770690,1.01979199,598.69,598.27,2.19429722]
[1746651771090,0.29072075,599.04,598.27,2.19429722]
[1746651771292,1.27455969,599.03,598.27,2.19429722]
[1746651771485,1.27455969,599.02,598.27,2.19429722]
[1746651771685,1.27455969,599.01,598.27,2.19429722]
[1746651771891,1.27455969,599.0,598.27,3.20929722]
[1746651772093,1.27455969,598.99,598.27,3.20929722]
[1746651772296,1.27455969,598.98,598.27,3.20929722]
[1746651772592,2.29437535,598.97,598.27,3.20929722]
[1746651772785,1.27455969,598.96,598.27,3.20929722]
[1746651772989,1.27455969,598.95,598.27,3.20929722]
[1746651773191,2.29437535,598.94,598.27,3.20929722]
[1746651773486,1.27455969,598.93,598.27,3.20929722]
[1746651773686,1.27455969,598.92,598.27,3.20929722]
[1746651773890,1.27455969,598.91,598.27,3.20929722]
[1746651774091,1.27455969,598.9,598.27,3.20929722]
[1746651774288,1.27455969,598.89,598.27,3.20929722]
[1746651774488,1.27455969,598.88,598.27,3.20929722]
[1746651774688,1.27455969,598.87,598.27,3.20929722]
[1746651774985,1.27455969,598.86,598.27,3.20929722]
[1746651775189,2.29437535,598.85,598.27,3.20929722]
[1746651775491,2.29437535,598.84,598.27,3.20929722]
[1746651775693,1.27455969,598.83,598.27,3.20929722]
[1746651775986,1.27455969,598.82,598.27,3.20929722]
[1746651776192,1.27351394,598.81,598.27,3.20929722]
[1746651776493,1.27351394,598.8,598.27,1.34929722]
[1746651776788,2.2933296,598.79,598.27,1.34929722]
[1746651776987,1.27351394,598.78,598.27,1.34929722]
[1746651777189,1.27351394,598.77,598.27,1.34929722]
[1746651777389,2.2933296,598.76,598.27,1.34929722]
[1746651777587,2.2933296,598.75,598.27,1.34929722]
[1746651777792,1.27351394,598.74,598.27,1.34929722]
[1746651778091,1.27351394,598.73,598.27,1.34929722]
[1746651778292,1.27351394,598.72,598.27,1.34929722]
[1746651778493,1.01981566,598.71,598.27,1.34929722]
[1746651779092,1.01981566,598.7,598.27,1.34929722]
[1746651779788,1.01981566,598.69,598.27,1.34929722]
[1746651780490,1.01981566,598.68,598.27,1.34929722]
[1746651780894,0.33352232,599.66,598.27,1.34929722]
[1746651781094,1.27441224,599.65,598.27,1.34929722]
[1746651781294,0.33353901,599.63,598.27,1.34929722]
[1746651781495,1.58122312,599.62,598.27,1.34929722]
[1746651781694,0.3335557,599.6,598.27,1.34929722]
[1746651781895,1.27441224,599.59,598.27,1.34929722]
[1746651782096,1.58122312,599.58,598.27,1.34929722]
[1746651782297,2.29379582,599.57,598.27,1.34929722]
[1746651782595,1.58122312,599.56,598.27,1.34929722]
[1746651782796,1.58122312,599.55,598.27,1.34929722]
[1746651783096,1.58122312,599.54,598.27,1.34929722]
[1746651783294,0.33360021,599.52,598.27,1.34929722]
[1746651783496,2.29404048,599.51,598.27,1.34929722]
[1746651783696,2.29404048,599.5,598.27,1.34929722]
[1746651783896,2.93449606,599.49,598.27,1.34929722]
[1746651784195,1.91511805,599.48,598.27,1.34929722]
[1746651784391,1.60828493,599.47,598.27,1.34929722]
[1746651784697,2.93451276,599.46,598.27,1.34929722]
[1746651784996,1.91513474,599.45,598.27,1.34929722]
[1746651785192,1.60830163,599.44,598.27,1.34929722]
[1746651785393,2.62748284,599.43,598.27,1.34929722]
[1746651785597,1.9149435,599.42,598.27,1.34929722]
[1746651785897,1.91494907,599.41,598.27,1.34929722]
[1746651786098,2.62749954,599.4,598.27,1.34929722]
[1746651786396,1.60812152,599.39,598.27,1.34929722]
[1746651786593,1.60812709,599.38,598.27,1.34929722]
[1746651786797,1.60813266,599.37,598.27,1.34929722]
[1746651786998,1.60813822,599.36,598.27,1.34929722]
[1746651787198,1.60739838,599.35,598.27,1.34929722]
[1746651787391,1.58054223,599.34,598.27,1.34929722]
[1746651787592,1.27370355,599.33,598.27,1.34929722]
[1746651787796,2.29308713,599.32,598.27,1.34929722]
[1746651787994,1.58054195,599.31,598.27,1.34929722]
[1746651788192,1.27370355,599.3,598.27,1.34929722]
[1746651788396,1.27370355,599.29,598.27,1.34929722]
[1746651792305,1.27338455,599.1,598.27,1.34929722]
[1746651792497,1.27338455,599.09,598.27,1.34929722]
[1746651792701,1.27136137,599.08,598.27,1.34929722]
[1746651792903,1.27136137,599.07,598.27,1.34929722]
[1746651793100,1.27136137,599.06,598.27,1.34929722]
[1746651793303,2.29074495,599.05,598.27,1.34929722]
[1746651793503,2.29074495,599.04,598.27,1.34929722]
[1746651793705,1.27136137,599.03,598.27,1.34929722]
[1746651793905,2.29074495,599.02,598.27,1.34929722]
[1746651794104,1.27136137,599.01,598.27,1.34929722]
[1746651794303,1.27136137,599.0,598.27,1.34929722]
[1746651794503,2.29074495,598.99,598.27,1.34929722]
[1746651794803,1.27136137,598.98,598.27,1.34929722]
[1746651795006,1.27136137,598.97,598.27,1.34929722]
[1746651795206,1.27136137,598.96,598.27,1.34929722]
[1746651795406,2.29074495,598.95,598.27,1.34929722]
[1746651795600,1.27136137,598.94,598.27,1.34929722]
[1746651795805,2.29074495,598.93,598.27,1.34929722]
[1746651796007,1.27136137,598.92,598.27,1.34929722]
[1746651796205,1.27136137,598.91,598.27,1.34929722]
[1746651796404,1.01938358,598.93,598.27,1.34929722]
[1746651796405,2.29074495,598.9,598.27,1.34929722]
[1746651796609,1.27136137,598.89,598.27,1.34929722]
[1746651796804,1.27136137,598.88,598.27,1.34929722]
[1746651797008,1.27136137,598.87,598.27,1.34929722]
[1746651797308,1.27136137,598.86,598.27,1.34929722]
[1746651797504,2.29074495,598.85,598.27,1.34929722]
[1746651797706,1.27136137,598.84,598.27,1.34929722]
[1746651797910,1.27136137,598.83,598.27,1.34929722]
[1746651798217,1.27094679,598.82,598.27,1.34929722]
[1746651798505,1.27094679,598.81,598.27,1.34929722]
[1746651798809,2.29033037,598.8,598.27,1.34929722]
[1746651799012,2.29033037,598.79,598.27,1.34929722]
[1746651799214,1.27094679,598.78,598.27,1.34929722]
[1746651799411,2.29033037,598.77,598.27,1.34929722]
[1746651799608,1.27094679,598.76,598.27,1.34929722]
[1746651799912,2.29072725,598.75,598.27,1.34929722]
[1746651800112,1.27134367,598.74,598.27,1.34929722]
[1746651800311,2.29072725,598.73,598.27,1.34929722]
[1746651800509,1.27134367,598.72,598.27,1.34929722]
[1746651800707,2.29072725,598.71,598.27,1.34929722]
[1746651800911,1.27134367,598.7,598.27,1.34929722]
[1746651801209,2.29072725,598.69,598.27,1.34929722]
[1746651801409,1.01938358,598.69,598.27,1.34929722]
[1746651801615,1.01938358,598.68,598.27,1.34929722]
[1746651802214,1.01938358,598.67,598.27,1.34929722]
[1746651802909,1.01938358,598.66,598.27,1.34929722]
[1746651803213,1.01938358,598.65,598.27,1.34929722]
[1746651804414,1.01938358,598.64,598.27,1.34929722]
[1746651805110,1.01938358,598.63,598.27,1.34929722]
[1746651805311,0.29077419,598.87,598.27,1.34929722]
[1746651805516,1.2718801,598.86,598.27,1.34929722]
[1746651805710,1.2718801,598.85,598.27,1.34929722]
[1746651805912,2.28933323,598.84,598.27,1.34929722]
[1746651806115,1.2718801,598.83,598.27,1.34929722]
[1746651806318,1.2718801,598.82,598.27,1.34929722]
[1746651806512,1.2718801,598.81,598.27,1.34929722]
[1746651806714,2.28933323,598.8,598.27,1.34929722]
[1746651806918,1.2718801,598.79,598.27,1.34929722]
[1746651807113,1.2718801,598.78,598.27,1.34929722]
[1746651807314,1.2718801,598.77,598.27,1.34929722]
[1746651807514,1.2718801,598.76,598.27,1.34929722]
[1746651807718,2.28933323,598.75,598.27,1.34929722]
[1746651808017,1.2718801,598.74,598.27,1.34929722]
[1746651808214,2.28933323,598.73,598.27,1.34929722]
[1746651808413,1.2718801,598.72,598.27,1.34929722]
[1746651808617,1.2718801,598.71,598.27,1.34929722]
[1746651808817,1.2718801,598.7,598.27,1.34929722]
[1746651809014,1.01745313,598.72,598.27,1.34929722]
[1746651809212,2.28988646,598.71,598.27,1.34929722]
[1746651809412,1.27243333,598.7,598.27,1.34929722]
[1746651809619,1.01745313,598.71,598.27,1.34929722]
[1746651809816,1.27143432,598.7,598.27,1.34929722]
[1746651810014,2.28889563,598.69,598.27,1.34929722]
[1746651810217,1.01745313,598.68,598.27,1.34929722]
[1746651810920,1.01745313,598.67,598.27,1.34929722]
[1746651811214,1.01745313,598.66,598.27,1.34929722]
[1746651811518,1.01745313,598.65,598.27,1.34929722]
[1746651812020,0.29075475,598.93,598.27,1.34929722]
[1746651812220,1.27175108,598.92,598.27,1.34929722]
[1746651812417,1.27175108,598.91,598.27,1.34929722]
[1746651812617,1.27175108,598.9,598.27,1.34929722]
[1746651812816,1.27185938,598.89,598.27,1.34929722]
[1746651813017,1.27185938,598.88,598.27,1.34929722]
[1746651813316,2.28966221,598.87,598.27,1.34929722]
[1746651813516,1.27185938,598.86,598.27,1.34929722]
[1746651813721,2.28966221,598.85,598.27,1.34929722]
[1746651813919,1.27185938,598.84,598.27,1.34929722]
[1746651814116,1.27185938,598.83,598.27,1.34929722]
[1746651814318,1.27185938,598.82,598.27,1.34929722]
[1746651814519,1.27185938,598.81,598.27,1.34929722]
[1746651814722,2.28966221,598.8,598.27,1.34929722]
[1746651814918,1.27185938,598.79,598.27,1.34929722]
[1746651815120,1.27185938,598.78,598.27,1.34929722]
[1746651815320,2.28966221,598.77,598.27,1.34929722]
[1746651815520,1.27185938,598.76,598.27,1.34929722]
[1746651815721,2.28966221,598.75,598.27,1.34929722]
[1746651816018,1.27185938,598.74,598.27,1.34929722]
[1746651816217,2.28966221,598.73,598.27,1.34929722]
[1746651816419,1.27472171,598.72,598.27,1.34929722]
[1746651816621,2.29252454,598.71,598.27,1.34929722]
[1746651816822,1.27472171,598.7,598.27,1.34929722]
[1746651817023,1.27466466,598.69,598.27,1.34929722]
[1746651817224,1.01780283,598.69,598.27,1.34929722]
[1746651817725,1.01780283,598.69,598.27,0.33429722]
[1746651818422,1.27487497,598.68,598.27,0.33429722]
[1746651818822,1.01780283,598.69,598.27,0.33429722]
[1746651819428,1.27479155,598.68,598.27,0.33429722]
[1746651819831,1.01780283,598.69,598.27,0.33429722]
[1746651820129,1.01780283,598.67,598.27,0.33429722]
[1746651820930,1.27513424,598.66,598.27,0.33429722]
[1746651821129,1.27513424,598.65,598.27,0.33429722]
[1746651821327,1.27579663,598.64,598.27,0.33429722]
[1746651821527,1.01780283,598.67,598.27,0.33429722]
[1746651821728,2.29360341,598.66,598.27,0.33429722]
[1746651821926,1.27580058,598.65,598.27,0.33429722]
[1746651822125,1.27580058,598.64,598.27,0.33429722]
[1746651822328,2.29360341,598.63,598.27,0.33429722]
[1746651822627,1.01780283,598.63,598.27,0.33429722]
[1746651822831,1.01780283,598.62,598.27,0.33429722]
[1746651823833,1.01780283,598.61,598.27,0.33429722]
[1746651824334,1.01780283,598.6,598.27,0.33429722]
[1746651824634,1.01780283,598.59,598.27,0.33429722]
[1746651824833,0.29079605,598.87,598.27,0.33429722]
[1746651824834,1.01780283,598.58,598.27,0.33429722]
[1746651825532,1.01780283,598.57,598.27,0.33429722]
[1746651825936,0.29080334,598.87,598.27,0.33429722]
[1746651826136,1.27609105,598.86,598.27,0.33429722]
[1746651826333,1.27616358,598.85,598.27,0.33429722]
[1746651826532,1.27616358,598.84,598.27,0.33429722]
[1746651826736,1.27616358,598.83,598.27,0.33429722]
[1746651827039,1.27616358,598.82,598.27,0.33429722]
[1746651827237,2.29673179,598.81,598.27,0.33429722]
[1746651827438,1.27616358,598.8,598.27,0.33429722]
[1746651827739,2.29673179,598.79,598.27,0.33429722]
[1746651827936,1.27616358,598.78,598.27,0.33429722]
[1746651828237,2.29673179,598.77,598.27,0.33429722]
[1746651828437,1.27616358,598.76,598.27,0.33429722]
[1746651828638,1.27616358,598.75,598.27,0.33429722]
[1746651828837,2.29673179,598.74,598.27,0.33429722]
[1746651829038,1.27616358,598.73,598.27,0.33429722]
[1746651829239,1.27616358,598.72,598.27,0.33429722]
[1746651829434,1.27616358,598.71,598.27,0.33429722]
[1746651829636,2.29673179,598.7,598.27,0.33429722]
[1746651829834,1.27616358,598.69,598.27,0.33429722]
[1746651830034,1.27616358,598.68,598.27,0.33429722]
[1746651830237,1.27616358,598.67,598.27,0.33429722]
[1746651830440,1.27616358,598.66,598.27,0.33429722]
[1746651830639,1.27660261,598.65,598.27,0.33429722]
[1746651830837,1.27660261,598.64,598.27,0.33429722]
[1746651831136,1.02056821,598.64,598.27,0.33429722]
[1746651831540,1.02056821,598.63,598.27,0.33429722]
[1746651831937,1.02056821,598.62,598.27,0.33429722]
[1746651832443,1.02056821,598.61,598.27,0.33429722]
[1746651832742,1.02056821,598.6,598.27,0.33429722]
[1746651833237,1.02056821,598.59,598.27,0.33429722]
[1746651833942,0.2907839,598.87,598.27,0.33429722]
[1746651834242,0.33369483,599.35,598.27,0.33429722]
[1746651834243,1.27569523,598.86,598.27,0.33429722]
[1746651834537,0.33369483,599.35,598.27,0.33429722]
[1746651834538,2.29651353,598.85,598.27,0.33429722]
[1746651834742,1.27569523,598.84,598.27,0.33429722]
[1746651834941,1.27569523,598.83,598.27,0.33429722]
[1746651835141,1.27569523,598.82,598.27,0.33429722]
[1746651835342,1.27569523,598.81,598.27,0.33429722]
[1746651835535,2.29651353,598.8,598.27,0.33429722]
[1746651835740,1.27569523,598.79,598.27,0.33429722]
[1746651836043,2.29651353,598.78,598.27,0.33429722]
[1746651836237,1.27569523,598.77,598.27,0.33429722]
[1746651836542,2.29651353,598.76,598.27,0.33429722]
[1746651836741,1.27569523,598.75,598.27,0.33429722]
[1746651836938,1.27569523,598.74,598.27,0.33429722]
[1746651837242,1.27569523,598.73,598.27,0.33429722]
[1746651837438,2.29651353,598.72,598.27,0.33429722]
[1746651837642,1.27569523,598.71,598.27,0.33429722]
[1746651837844,1.27569523,598.7,598.27,0.33429722]
[1746651838042,2.29651353,598.69,598.27,0.33429722]
[1746651838243,2.29651353,598.68,598.27,0.33429722]
[1746651838444,1.27569523,598.67,598.27,0.33429722]
[1746651838643,1.27569523,598.66,598.27,0.33429722]
[1746651838845,2.29651353,598.65,598.27,0.33429722]
[1746651839044,1.27569523,598.64,598.27,0.33429722]
[1746651839240,1.27569523,598.63,598.27,0.33429722]
[1746651839445,1.27569523,598.62,598.27,0.33429722]
[1746651839645,1.0208183,598.64,598.27,0.33429722]
[1746651839840,1.27632487,598.63,598.27,0.33429722]
[1746651840045,1.27632487,598.62,598.27,0.33429722]
[1746651840246,1.0208183,598.63,598.27,0.33429722]
[1746651840442,2.29714317,598.62,598.27,0.33429722]
[1746651840642,1.0208183,598.62,598.27,0.33429722]
[1746651841046,1.0208183,598.61,598.27,0.33429722]
[1746651841247,1.27648979,598.6,598.27,0.33429722]
[1746651841444,1.27648979,598.59,598.27,0.33429722]
[1746651841642,1.0208183,598.61,598.27,0.33429722]
[1746651841643,1.0208183,598.58,598.27,0.33429722]
[1746651842346,1.0208183,598.57,598.27,0.33429722]
[1746651842852,1.0208183,598.56,598.27,0.33429722]
[1746651843149,0.29078633,598.87,598.27,0.33429722]
[1746651843150,1.0208183,598.55,598.27,0.33429722]
[1746651843550,0.33369483,599.35,598.27,0.33429722]
[1746651843751,0.29079484,598.87,598.27,0.33429722]
[1746651843951,2.29728506,598.86,598.27,0.33429722]
[1746651844150,1.27612697,598.85,598.27,0.33429722]
[1746651844350,1.27612697,598.84,598.27,0.33429722]
[1746651844651,1.27612697,598.83,598.27,0.33429722]
[1746651844952,1.27743301,598.82,598.27,0.33429722]
[1746651845153,2.2985911,598.81,598.27,0.33429722]
[1746651845449,2.2985911,598.8,598.27,0.33429722]
[1746651845651,1.27743301,598.79,598.27,0.33429722]
[1746651845847,2.2985911,598.78,598.27,0.33429722]
[1746651846046,1.27743301,598.77,598.27,0.33429722]
[1746651846350,1.27743301,598.76,598.27,0.33429722]
[1746651846647,2.2985911,598.75,598.27,0.33429722]
[1746651846853,1.27743301,598.74,598.27,0.33429722]
[1746651847053,2.2985911,598.73,598.27,0.33429722]
[1746651847348,1.27743301,598.72,598.27,0.33429722]
[1746651847554,1.27743301,598.71,598.27,0.33429722]
[1746651847853,2.2985911,598.7,598.27,0.33429722]
[1746651848054,1.27743301,598.69,598.27,0.33429722]
[1746651848253,1.27743301,598.68,598.27,0.33429722]
[1746651848553,1.27743301,598.67,598.27,0.33429722]
[1746651848756,2.2985911,598.66,598.27,0.33429722]
[1746651849054,1.27743301,598.65,598.27,0.33429722]
[1746651849350,2.2985911,598.64,598.27,0.33429722]
[1746651849550,1.27743301,598.63,598.27,0.33429722]
[1746651849762,1.27743301,598.62,598.27,0.33429722]
[1746651849954,2.2985911,598.61,598.27,0.33429722]
[1746651850150,1.27743301,598.6,598.27,0.33429722]
[1746651850456,2.2985911,598.59,598.27,0.33429722]
[1746651850655,1.02115809,598.59,598.27,0.33429722]
[1746651851056,1.02115809,598.58,598.27,0.33429722]
[1746651851856,1.02115809,598.57,598.27,0.33429722]
[1746651852660,1.02115809,598.56,598.27,0.33429722]
[1746651853158,1.02115809,598.55,598.27,0.33429722]
[1746651853658,0.29078998,598.87,598.27,0.33429722]
[1746651853859,1.27630837,598.86,598.27,0.33429722]
[1746651854058,1.27630837,598.85,598.27,0.33429722]
[1746651854256,1.27631572,598.84,598.27,0.33429722]
[1746651854454,1.27631572,598.83,598.27,0.33429722]
[1746651854660,1.27631572,598.82,598.27,0.33429722]
[1746651854961,2.29760434,598.81,598.27,2.01429722]
[1746651855160,1.27631572,598.8,598.27,2.01429722]
[1746651855355,2.29760434,598.79,598.27,2.01429722]
[1746651855555,1.27631572,598.78,598.27,2.01429722]
[1746651855760,1.27631572,598.77,598.27,2.01429722]
[1746651855959,1.02128862,598.76,598.27,2.01429722]
[1746651856156,1.27620854,598.75,598.27,2.01429722]
[1746651856360,2.29749716,598.74,598.27,2.01429722]
[1746651856562,1.27620854,598.73,598.27,2.01429722]
[1746651856757,1.27620854,598.72,598.27,2.01429722]
[1746651856957,1.27620854,598.71,598.27,2.01429722]
[1746651857160,1.27620854,598.7,598.27,2.01429722]
[1746651857357,2.29749716,598.69,598.27,2.01429722]
[1746651857561,1.27620854,598.68,598.27,2.01429722]
[1746651857763,1.27620854,598.67,598.27,2.01429722]
[1746651857962,1.2760648,598.66,598.27,2.01429722]
[1746651858262,1.2760648,598.65,598.27,2.01429722]
[1746651858463,1.2760648,598.64,598.27,2.01429722]
[1746651858763,1.2760648,598.63,598.27,2.01429722]
[1746651859059,1.2760648,598.62,598.27,2.01429722]
[1746651859260,2.29735342,598.61,598.27,2.01429722]
[1746651859461,1.2760648,598.6,598.27,2.01429722]
[1746651859660,1.02128862,598.61,598.27,2.01429722]
[1746651859959,2.297588,598.6,598.27,2.01429722]
[1746651860158,1.27629938,598.59,598.27,2.01429722]
[1746651860358,1.02128862,598.6,598.27,2.01429722]
[1746651860560,2.29754007,598.59,598.27,2.01429722]
[1746651860860,1.02128862,598.59,598.27,2.01429722]
[1746651861163,1.02128862,598.58,598.27,2.01429722]
[1746651861366,1.02128862,598.57,598.27,2.01429722]
[1746651861768,1.02128862,598.56,598.27,2.01429722]
[1746651862669,1.02128862,598.55,598.27,2.01429722]